bitfinex-derivatives/quotes_SOLF0:USTF0_20260127
["timestamp","ask_amount","ask_price","bid_price","bid_amount"]
[1769532316557,7.1171,126.59,126.51,7.1213]
[1769532316872,7.1171,126.59,126.51,60.54960022]
[1769532316873,51.43000665,126.58,126.51,60.54960022]
[1769532317362,51.43000665,126.58,126.52,7.1208]
[1769532317566,58.54630665,126.61,126.52,53.42830022]
[1769532318965,58.54630665,126.61,126.53,7.1202]
[1769532319368,58.54630665,126.61,126.53,60.54850022]
[1769532321868,58.54660665,126.6,126.53,60.54850022]
[1769532322567,55.49141172,126.59,126.51,7.1211]
[1769532322768,48.37441172,126.59,126.51,7.1211]
[1769532323371,48.37441172,126.58,126.5,51.62220449]
[1769532323760,48.37441172,126.61,126.5,51.62220449]
[1769532324073,55.49081172,126.6,126.53,7.1203]
[1769532325269,55.49081172,126.6,126.52,51.62220449]
[1769532326672,58.60503788,126.59,126.52,58.74310449]
[1769532328274,110.6861,126.62,126.5,4.58780003]
[1769532328275,51.48803788,126.58,126.5,7.1215]
[1769532328677,58.60633788,126.57,126.5,59.82636714]
[1769532329377,51.48803788,126.57,126.51,59.82616714]
[1769532329578,51.48803788,126.6,126.51,52.70486714]
[1769532330074,51.48803788,126.59,126.51,52.70486714]
[1769532330371,51.48803788,126.58,126.49,52.70486714]
[1769532331570,58.60573788,126.58,126.5,52.70486714]
[1769532331771,51.48803788,126.61,126.5,57.29266717]
[1769532332082,58.60503788,126.6,126.53,7.1203]
[1769532333367,58.60503788,126.6,126.54,7.1196]
[1769532334968,51.48803788,126.6,126.54,7.1196]
[1769532335679,110.6815,126.63,126.54,52.70486714]
[1769532335680,51.48803788,126.63,126.54,52.70486714]
[1769532336181,51.48803788,126.65,126.58,7.1175]
[1769532336376,51.48803788,126.65,126.58,52.70486714]
[1769532336877,51.48803788,126.65,126.58,59.82196714]
[1769532337074,51.48803788,126.65,126.56,52.2408073]
[1769532337474,55.03097631,126.64,126.56,54.77120727]
[1769532338582,47.91667631,126.64,126.56,54.77120727]
[1769532338775,47.91667631,126.64,126.57,7.118]
[1769532339879,55.03087631,126.64,126.56,47.65300727]
[1769532340073,55.03087631,126.64,126.56,54.77160727]
[1769532340573,7.1148,126.63,126.56,54.77160727]
[1769532340774,47.91667631,126.62,126.56,7.1186]
[1769532341675,47.91667631,126.64,126.57,7.118]
[1769532342173,55.03087631,126.64,126.55,54.77170727]
[1769532342377,47.91667631,126.64,126.55,47.65300727]
[1769532343977,55.03157631,126.63,126.56,7.1186]
[1769532345881,110.6506,126.66,126.54,47.65300727]
[1769532345882,47.91667631,126.61,126.54,47.65300727]
[1769532346585,47.91667631,126.61,126.56,7.1187]
[1769532347783,47.91667631,126.61,126.55,7.1192]
[1769532348092,47.91667631,126.61,126.52,47.65300727]
[1769532348780,55.03307631,126.61,126.54,7.1198]
[1769532349380,55.03367631,126.59,126.52,54.77350727]
[1769532350290,55.03367631,126.59,126.52,7.1205]
[1769532350495,55.03367631,126.59,126.5,52.2408073]
[1769532351295,47.91667631,126.59,126.52,7.1207]
[1769532353191,47.91667631,126.59,126.52,54.77370727]
[1769532353798,47.91667631,126.59,126.53,7.1202]
[1769532353988,47.91667631,126.59,126.53,54.77320727]
[1769532354491,55.23442335,126.61,126.53,54.77320727]
[1769532356189,55.23442335,126.61,126.53,47.65300727]
[1769532356391,55.23442335,126.61,126.54,7.1197]
[1769532359496,48.11852335,126.59,126.54,7.1197]
[1769532360299,48.11852335,126.63,126.55,48.85420297]
[1769532360798,7.1154,126.62,126.56,7.1186]
[1769532361013,48.11852335,126.62,126.55,48.85420297]
[1769532361198,48.11852335,126.62,126.52,48.85420297]
[1769532361800,55.23452335,126.61,126.52,48.85420297]
[1769532362098,48.11852335,126.61,126.52,48.85420297]
[1769532362790,48.11852335,126.64,126.54,48.85420297]
[1769532363596,55.23332335,126.63,126.56,7.1187]
[1769532365001,7.1148,126.63,126.57,48.85420297]
[1769532365705,55.23272335,126.65,126.57,48.85420297]
[1769532366905,55.23272335,126.65,126.58,7.1175]
[1769532367707,55.23272335,126.64,126.58,1.86550123]
[1769532368604,55.23342335,126.63,126.56,50.7197042]
[1769532368806,55.23342335,126.63,126.58,1.86550123]
[1769532369003,55.23342335,126.63,126.57,1.86550123]
[1769532370405,48.11852335,126.63,126.57,1.86550123]
[1769532370807,48.11852335,126.63,126.57,8.98340123]
[1769532372209,55.23332335,126.63,126.57,1.86550123]
[1769532372910,48.11852335,126.63,126.57,8.98360123]
[1769532373112,48.11852335,126.63,126.57,50.7197042]
[1769532373715,48.11852335,126.63,126.58,1.86542792]
[1769532373913,48.11852335,126.66,126.6,1.86542792]
[1769532374118,48.11852335,126.7,126.62,1.86542792]
[1769532374918,48.11852335,126.68,126.62,8.98042792]
[1769532375312,48.11852335,126.68,126.64,1.86542792]
[1769532376522,14.2151,126.76,126.66,1.86542792]
[1769532376523,48.11852335,126.71,126.66,1.86542792]
[1769532376821,404.5499,126.78,126.66,1.86542792]
[1769532376822,48.11852335,126.84,126.72,110.5871]
[1769532377024,48.11852335,126.82,126.74,50.71963089]
[1769532377423,48.11852335,126.82,126.74,48.85420297]
[1769532377619,48.11852335,126.82,126.74,50.71963089]
[1769532378027,48.11852335,126.82,126.75,7.1077]
[1769532378421,49.98395127,126.84,126.76,1.86542792]
[1769532378825,49.98395127,126.84,126.76,8.97252792]
[1769532379221,49.98395127,126.84,126.76,7.1071]
[1769532379730,48.11852335,126.84,126.76,7.1071]
[1769532380230,48.11852335,126.84,126.74,55.96260297]
[1769532381024,48.11852335,126.81,126.72,7.1094]
[1769532381327,48.11852335,126.81,126.72,48.85420297]
[1769532381625,48.11852335,126.81,126.74,48.85420297]
[1769532382227,48.11852335,126.81,126.74,55.96240297]
[1769532382426,48.11852335,126.81,126.72,133.83868067]
[1769532382427,48.11852335,126.81,126.72,182.69288364]
[1769532382623,48.11852335,126.81,126.73,50.75696734]
[1769532383024,48.11852335,126.81,126.73,57.86576734]
[1769532384830,48.11852335,126.81,126.73,7.1088]
[1769532385532,48.11852335,126.81,126.72,71.98229016]
[1769532387138,48.11852335,126.81,126.72,79.09179016]
[1769532387631,55.22352335,126.81,126.72,79.09179016]
[1769532392532,56.08780416,126.8,126.72,79.09179016]
[1769532392739,56.08780416,126.8,126.72,7.1095]
[1769532393032,56.08780416,126.8,126.7,159.34710949]
[1769532393033,56.08950416,126.77,126.7,48.73690949]
[1769532393237,56.08950416,126.77,126.69,7.111]
[1769532394128,56.09010416,126.76,126.67,55.84910949]
[1769532394837,56.09010416,126.76,126.68,7.1117]
[1769532395033,56.09010416,126.76,126.68,55.84860949]
[1769532395235,48.98250416,126.74,126.66,48.73690949]
[1769532395438,48.98250416,126.74,126.63,48.73690949]
[1769532395439,48.98250416,126.73,126.63,48.73690949]
[1769532395631,48.98250416,126.73,126.62,315.08]
[1769532395632,56.09340416,126.7,126.62,315.08]
[1769532395836,48.98250416,126.7,126.61,48.73690949]
[1769532396339,48.98250416,126.67,126.6,7.116]
[1769532396732,48.98250416,126.67,126.59,305.82544171]
[1769532397837,48.98250416,126.67,126.59,298.70854171]
[1769532398838,7.1132,126.66,126.59,298.70854171]
[1769532399043,56.09570416,126.66,126.59,298.70854171]
[1769532400044,56.09570416,126.66,126.59,305.82544171]
[1769532405649,48.98250416,126.69,126.61,55.85260949]
[1769532406252,48.98250416,126.69,126.62,55.85210949]
[1769532406554,48.98250416,126.73,126.62,55.85210949]
[1769532406750,48.98250416,126.72,126.62,55.85210949]
[1769532408052,7.1109,126.7,126.62,55.85210949]
[1769532408857,56.09340416,126.7,126.62,55.85210949]
[1769532410159,7.1103,126.71,126.64,48.73690949]
[1769532410855,48.98250416,126.71,126.64,48.73690949]
[1769532411159,48.98250416,126.71,126.62,55.85170949]
[1769532411959,7.1114,126.69,126.62,55.85170949]
[1769532415459,49.1372703,126.73,126.64,51.35616369]
[1769532416960,56.2463703,126.73,126.66,58.46916369]
[1769532419477,56.2457703,126.75,126.67,51.35616369]
[1769532420978,56.2457703,126.75,126.68,58.46806369]
[1769532421579,115.09788028,126.8,126.69,58.46746369]
[1769532421580,7.1073,126.77,126.69,58.46746369]
[1769532421880,49.1372703,126.77,126.69,58.46746369]
[1769532422078,7.1088,126.74,126.67,58.46826369]
[1769532422378,7.1088,126.74,126.67,51.35616369]
[1769532424079,56.2460703,126.74,126.68,51.35616369]
[1769532424279,49.1372703,126.73,126.66,51.35616369]
[1769532426681,7.1097,126.72,126.66,51.35616369]
[1769532426874,56.2469703,126.72,126.66,51.35616369]
[1769532429182,49.1372703,126.7,126.62,51.35616369]
[1769532429374,49.1372703,126.7,126.6,292.63643772]
[1769532429375,49.1372703,126.68,126.59,350.0647054]
[1769532430381,49.1372703,126.68,126.6,7.1164]
[1769532430382,7.1131,126.66,126.6,7.1164]
[1769532430876,56.2496703,126.68,126.6,7.1164]
[1769532431080,49.1372703,126.68,126.6,58.47256369]
[1769532432082,56.2503703,126.66,126.6,51.35616369]
[1769532433885,49.1372703,126.66,126.6,58.47256369]
[1769532435388,49.1372703,126.68,126.61,7.1158]
[1769532436989,56.2491703,126.68,126.61,7.1158]
[1769532441188,7.1126,126.67,126.61,7.1158]
[1769532441388,7.1126,126.67,126.6,58.47256369]
[1769532441389,56.2498703,126.67,126.6,58.47256369]
[1769532441590,49.1372703,126.67,126.59,298.70854171]
[1769532441993,56.2508703,126.65,126.59,298.70854171]
[1769532443697,46.49363146,126.64,126.59,298.70854171]
[1769532445097,53.60793146,126.64,126.59,298.70854171]
[1769532446590,1.86533181,126.65,126.59,349.26505293]
[1769532446793,48.7454567,126.67,126.6,50.55651122]
[1769532447195,7.1131,126.66,126.6,57.67291122]
[1769532447798,53.99322489,126.66,126.6,57.67291122]
[1769532448898,48.7454567,126.65,126.59,298.70854171]
[1769532449296,7.1149,126.64,126.59,298.70854171]
[1769532450096,1.86533181,126.63,126.59,298.70854171]
[1769532451797,1.86533181,126.63,126.59,286.35484171]
[1769532451998,1.86533181,126.61,126.54,365.89651122]
[1769532452301,110.6706,126.65,126.55,71.96708572]
[1769532452501,7.1162,126.62,126.55,79.08698572]
[1769532452697,112.54483181,126.64,126.55,71.96708572]
[1769532452900,1.86533181,126.62,126.55,71.96708572]
[1769532453900,7.1167,126.61,126.55,71.96708572]
[1769532454506,1.86533181,126.62,126.55,79.08698572]
[1769532455204,8.98153181,126.62,126.55,79.08698572]
[1769532455401,1.86533181,126.66,126.57,71.96708572]
[1769532455601,1.86533181,126.68,126.59,71.96708572]
[1769532455902,7.1144,126.65,126.59,71.96708572]
[1769532457607,7.1144,126.65,126.59,70.10175391]
[1769532460400,110.6388,126.69,126.59,77.21935391]
[1769532460605,110.632,126.7,126.59,70.10175391]
[1769532461906,7.1133,126.67,126.59,77.21895391]
[1769532462304,7.1133,126.67,126.6,77.21865391]
[1769532463210,110.632,126.7,126.61,77.21825391]
[1769532464910,110.6235,126.71,126.62,77.21775391]
[1769532465209,298.795,126.76,126.62,70.10175391]
[1769532465210,110.5954,126.74,126.62,70.10175391]
[1769532465404,425.9754,126.74,126.62,70.10175391]
[1769532466117,7.1116,126.7,126.64,7.1147]
[1769532466406,7.1116,126.7,126.64,77.21645391]
[1769532466911,7.1116,126.7,126.64,70.10175391]
[1769532468711,7.1123,126.69,126.62,70.10175391]
[1769532470008,7.1123,126.69,126.63,77.21715391]
[1769532470206,110.6102,126.72,126.63,70.10175391]
[1769532470207,7.1127,126.68,126.63,70.10175391]
[1769532471608,110.6158,126.71,126.56,23.70994303]
[1769532471609,7.1133,126.67,126.59,7.1172]
[1769532471908,110.6609,126.66,126.57,70.10175391]
[1769532472906,7.1155,126.63,126.57,70.10175391]
[1769532473817,110.6778,126.64,126.55,70.10175391]
[1769532475008,7.1166,126.61,126.55,70.10175391]
[1769532476213,110.6609,126.66,126.55,70.10175391]
[1769532476518,426.0209,126.66,126.55,70.10175391]
[1769532477109,7.1155,126.63,126.57,70.10175391]
[1769532477615,7.1155,126.63,126.57,71.96787417]
[1769532478211,1.86612026,126.65,126.57,71.96787417]
[1769532479918,7.115,126.64,126.57,79.08667417]
[1769532480318,7.115,126.64,126.57,77.22055391]
[1769532480520,7.115,126.64,126.57,79.08667417]
[1769532481030,7.1144,126.65,126.59,71.96787417]
[1769532481315,1.86612026,126.69,126.61,71.96787417]
[1769532482021,235.46,126.7,126.61,71.96787417]
[1769532482416,235.46,126.7,126.61,79.08437417]
[1769532482417,7.1132,126.67,126.61,79.08437417]
[1769532482614,112.49942026,126.69,126.61,71.96787417]
[1769532483013,7.1132,126.68,126.61,71.96787417]
[1769532484013,7.1132,126.68,126.58,110.7251]
[1769532484014,7.1121,126.69,126.63,71.96787417]
[1769532484921,7.1127,126.68,126.63,71.96787417]
[1769532486624,110.6425,126.68,126.61,71.96787417]
[1769532486922,7.1161,126.62,126.57,71.96787417]
[1769532487620,7.1161,126.62,126.57,70.10175391]
[1769532487925,110.6778,126.64,126.57,70.10175391]
[1769532489131,7.1167,126.61,126.57,70.10175391]
[1769532493223,7.1171,126.6,126.57,70.10175391]
[1769532493423,7.1171,126.6,126.53,4.58211404]
[1769532493424,7.1171,126.6,126.54,70.10175391]
[1769532495233,7.1166,126.62,126.54,70.10175391]
[1769532496922,418.8914,126.65,126.57,70.10175391]
[1769532498728,110.6714,126.65,126.57,70.10175391]
[1769532498937,7.1161,126.62,126.57,70.10175391]
[1769532499436,315.44,126.67,126.57,81.80241126]
[1769532500338,110.6341,126.69,126.59,70.10175391]
[1769532500535,110.6331,126.69,126.61,70.10175391]
[1769532502037,7.1138,126.66,126.61,70.10175391]
[1769532503630,7.1144,126.65,126.6,4.58205735]
[1769532503837,7.1144,126.65,126.59,70.09878217]
[1769532504933,110.6593,126.66,126.59,70.09878217]
[1769532505137,315.44,126.65,126.56,70.10175391]
[1769532505323,110.6772,126.64,126.56,70.10175391]
[1769532505935,7.1166,126.61,126.56,70.10175391]
[1769532507533,7.1166,126.61,126.56,71.96823099]
[1769532509545,7.1171,126.6,126.56,71.96823099]
[1769532509835,7.1171,126.6,126.56,1.86647708]
[1769532510031,112.56297708,126.62,126.54,71.96823099]
[1769532510237,1.86647708,126.62,126.54,71.96823099]
[1769532511941,7.1173,126.6,126.54,71.96823099]
[1769532512142,7.1173,126.6,126.55,1.86647708]
[1769532512338,7.1173,126.6,126.55,71.96823099]
[1769532512840,7.118,126.59,126.55,70.10175391]
[1769532513040,7.118,126.59,126.55,71.96823099]
[1769532515141,7.1172,126.6,126.55,71.96823099]
[1769532515641,7.1182,126.59,126.55,70.10175391]
[1769532515841,112.57237708,126.61,126.54,1.86647708]
[1769532516048,112.57237708,126.61,126.53,71.96823099]
[1769532516249,112.57237708,126.61,126.54,1.86647708]
[1769532516549,112.57237708,126.61,126.54,71.96823099]
[1769532516948,7.1184,126.58,126.54,71.96823099]
[1769532517140,7.1184,126.58,126.54,70.10175391]
[1769532518051,428.02467708,126.62,126.54,71.96823099]
[1769532519047,7.1177,126.59,126.54,71.96823099]
[1769532520753,7.1171,126.61,126.56,66.54255391]
[1769532520952,1.86647708,126.62,126.56,66.54255391]
[1769532521648,7.1173,126.6,126.56,66.54255391]
[1769532521954,1.86647708,126.62,126.56,66.54255391]
[1769532522354,110.7219,126.59,126.51,66.54255391]
[1769532522554,110.738,126.57,126.48,66.54255391]
[1769532522749,112.60447708,126.57,126.49,68.40903099]
[1769532522950,110.7469,126.56,126.49,68.40903099]
[1769532523644,7.1203,126.55,126.49,68.40903099]
[1769532524553,7.1194,126.56,126.51,68.40903099]
[1769532525544,7.1194,126.56,126.51,66.54255391]
[1769532526456,7.12,126.55,126.51,66.54255391]
[1769532527051,7.1207,126.54,126.47,7.124]
[1769532528950,0.29264128,126.55,126.47,60.33610391]
[1769532529758,7.1218,126.52,126.47,60.33610391]
[1769532529944,0.47348342,126.53,126.45,4.58605566]
[1769532530149,316.03348342,126.53,126.44,60.33610391]
[1769532530752,7.1234,126.49,126.44,60.33610391]
[1769532530952,0.65235327,126.5,126.44,60.33610391]
[1769532532154,7.1234,126.49,126.44,60.33610391]
[1769532532950,7.124,126.48,126.44,60.33610391]
[1769532533962,0.65235327,126.5,126.44,60.33610391]
[1769532534963,7.1234,126.49,126.44,60.33610391]
[1769532535364,1.58083035,126.55,126.46,61.0261645]
[1769532535662,311.70083035,126.55,126.46,61.0261645]
[1769532536162,426.43,126.56,126.46,68.1511645]
[1769532536965,7.1206,126.54,126.46,68.1511645]
[1769532539763,7.1206,126.54,126.48,61.0261645]
[1769532540068,7.1199,126.56,126.48,65.61222016]
[1769532540567,322.7987,126.58,126.48,65.61222016]
[1769532541060,322.7987,126.58,126.51,4.58605566]
[1769532541262,322.7987,126.58,126.52,61.0261645]
[1769532543466,7.1175,126.6,126.52,61.0261645]
[1769532544063,7.1175,126.6,126.52,68.1476645]
[1769532545667,322.7964,126.62,126.54,65.61222016]
[1769532546168,7.1164,126.62,126.54,65.61222016]
[1769532546570,7.1164,126.62,126.54,72.73222016]
[1769532547072,3.44954767,126.62,126.54,61.0261645]
[1769532547465,3.44954767,126.61,126.54,61.0261645]
[1769532547874,7.1184,126.58,126.49,61.0261645]
[1769532548069,3.59410537,126.58,126.51,61.0261645]
[1769532548273,3.59410537,126.56,126.46,61.0261645]
[1769532548465,7.1212,126.53,126.46,61.0261645]
[1769532549370,7.1204,126.55,126.46,68.1511645]
[1769532549874,114.34370537,126.56,126.46,68.1511645]
[1769532550066,7.1207,126.54,126.46,68.1511645]
[1769532551274,7.1207,126.54,126.46,61.0261645]
[1769532551275,4.01980523,126.53,126.46,61.0261645]
[1769532552169,4.01980523,126.53,126.42,4.58605566]
[1769532552170,114.94408435,126.52,126.43,61.0261645]
[1769532553164,7.1235,126.49,126.43,61.0261645]
[1769532553366,4.29672548,126.5,126.4,61.0261645]
[1769532553980,7.1245,126.47,126.4,61.0261645]
[1769532554772,7.1251,126.46,126.4,61.0261645]
[1769532555065,4.56756496,126.46,126.37,61.0261645]
[1769532556080,7.1263,126.44,126.37,61.0261645]
[1769532556778,115.5471855,126.45,126.37,61.0261645]
[1769532558078,7.1273,126.42,126.37,61.0261645]
[1769532559583,7.1265,126.44,126.37,61.0261645]
[1769532560584,436.42500239,126.47,126.37,61.0261645]
[1769532561378,7.1257,126.45,126.37,61.0261645]
[1769532562776,7.1257,126.45,126.37,68.1561645]
[1769532563687,12.34614488,126.47,126.39,60.33610391]
[1769532563882,5.22144488,126.47,126.39,60.33610391]
[1769532564987,7.1251,126.46,126.39,60.33610391]
[1769532565587,7.1244,126.48,126.39,60.33610391]
[1769532566089,7.1232,126.5,126.41,60.62619856]
[1769532566980,7.1232,126.5,126.43,60.62619856]
[1769532571116,7.1234,126.49,126.43,60.62619856]
[1769532572488,110.785,126.52,126.43,60.62619856]
[1769532572685,7.00824692,126.51,126.43,60.62619856]
[1769532572890,7.1239,126.48,126.43,60.62619856]
[1769532574593,322.82824692,126.51,126.43,60.62619856]
[1769532576096,7.1233,126.49,126.43,60.62619856]
[1769532576297,7.42364387,126.5,126.43,60.62619856]
[1769532577596,7.1245,126.47,126.43,60.62619856]
[1769532582503,7.1251,126.46,126.39,7.1287]
[1769532583802,315.82,126.48,126.4,7.1284]
[1769532584604,315.82,126.48,126.41,60.62619856]
[1769532584800,336.0679707,126.48,126.41,60.62619856]
[1769532586001,7.125,126.46,126.41,60.62619856]
[1769532587094,169.44838948,126.52,126.44,27.32796999]
[1769532587900,7.1236,126.49,126.44,27.32796999]
[1769532588603,7.124,126.48,126.42,27.92648368]
[1769532589900,7.1245,126.47,126.42,27.92648368]
[1769532593813,58.66428948,126.49,126.42,27.92648368]
[1769532593814,7.125,126.46,126.42,27.92648368]
[1769532595205,7.125,126.46,126.4,31.34966061]
[1769532595509,61.28430403,126.48,126.4,31.34966061]
[1769532595510,68.40870403,126.48,126.4,31.34966061]
[1769532595711,61.28430403,126.48,126.4,31.34966061]
[1769532596306,61.28430403,126.48,126.4,38.47806061]
[1769532597305,68.40870403,126.48,126.41,39.04585135]
[1769532597506,61.28430403,126.48,126.41,39.04585135]
[1769532598620,7.1251,126.46,126.41,31.91815135]
[1769532599312,7.1245,126.47,126.41,31.91815135]
[1769532599807,7.1251,126.46,126.41,31.91815135]
[1769532600608,7.1256,126.45,126.41,31.91815135]
[1769532601011,63.15519738,126.48,126.41,31.91815135]
[1769532601317,7.125,126.46,126.41,31.91815135]
[1769532601507,7.125,126.46,126.36,110.9181]
[1769532601508,63.15519738,126.5,126.42,34.8873697]
[1769532601709,61.28430403,126.5,126.44,1.87089335]
[1769532602410,63.15519738,126.5,126.42,34.8873697]
[1769532603819,63.15519738,126.5,126.44,35.41779032]
[1769532603820,61.28430403,126.5,126.44,35.41779032]
[1769532604812,61.28430403,126.5,126.4,110.8831]
[1769532604813,260.44827627,126.54,126.48,1.87089335]
[1769532605020,260.44827627,126.54,126.48,35.93609611]
[1769532605318,260.44827627,126.54,126.48,1.87089335]
[1769532607212,260.44827627,126.54,126.48,36.44256379]
[1769532607721,68.40540403,126.53,126.48,1.87089335]
[1769532608718,70.27629738,126.53,126.46,36.69144306]
[1769532609317,8.99199335,126.53,126.46,36.69144306]
[1769532609522,7.1211,126.53,126.46,36.69144306]
[1769532609724,7.1222,126.51,126.46,36.69144306]
[1769532610014,63.15519738,126.53,126.46,34.82054971]
[1769532610413,7.1217,126.52,126.46,34.82054971]
[1769532610921,1.87089335,126.51,126.46,34.82054971]
[1769532612319,63.15519738,126.53,126.46,34.82054971]
[1769532612515,63.15519738,126.53,126.46,36.69144306]
[1769532613021,63.15519738,126.53,126.46,34.82054971]
[1769532614016,70.27629738,126.53,126.46,34.82054971]
[1769532614822,1.87089335,126.53,126.46,36.69144306]
[1769532615019,206.28447224,126.54,126.46,36.69144306]
[1769532615524,7.1205,126.54,126.48,36.48447579]
[1769532616918,7.1205,126.54,126.48,45.47916914]
[1769532617318,68.40430403,126.55,126.5,1.87089335]
[1769532617521,68.40430403,126.55,126.49,1.87089335]
[1769532618317,7.1206,126.54,126.48,36.48447579]
[1769532618817,1.87089335,126.53,126.47,1.87089335]
[1769532619026,1.87089335,126.53,126.45,39.24748626]
[1769532619621,1.86941424,126.53,126.45,39.24600715]
[1769532619924,8.99051424,126.53,126.46,44.7180549]
[1769532620123,63.15371827,126.53,126.46,44.7180549]
[1769532620316,63.15371827,126.52,126.46,37.5932549]
[1769532621928,7.1223,126.51,126.46,37.5932549]
[1769532623531,65.27134359,126.5,126.43,45.62822044]
[1769532623727,63.40192935,126.5,126.43,47.49763468]
[1769532625019,176.79486446,126.53,126.46,1.86941424]
[1769532625223,64.14955022,126.52,126.46,1.86941424]
[1769532625827,7.1222,126.51,126.46,1.86941424]
[1769532626023,66.01896446,126.54,126.46,40.41774495]
[1769532626227,1.86941424,126.53,126.46,40.41774495]
[1769532626822,64.14955022,126.54,126.46,40.41774495]
[1769532627131,8.99091424,126.53,126.46,47.54254495]
[1769532634137,7.1217,126.52,126.46,47.54254495]
[1769532634636,7.1217,126.52,126.46,40.41774495]
[1769532634832,73.14116446,126.51,126.44,40.41774495]
[1769532635332,66.01896446,126.51,126.44,38.54833071]
[1769532635734,1.86941424,126.49,126.44,38.54833071]
[1769532636637,8.99291424,126.49,126.44,38.54833071]
[1769532636837,1.86941424,126.49,126.44,38.54833071]
[1769532637639,8.99281424,126.49,126.44,38.54833071]
[1769532639235,66.01896446,126.49,126.41,40.41774495]
[1769532639442,1.86941424,126.48,126.41,38.54833071]
[1769532640133,8.99391424,126.47,126.41,38.54833071]
[1769532640544,64.14955022,126.49,126.39,38.54833071]
[1769532640545,66.01896446,126.45,126.39,38.54833071]
[1769532641536,64.14955022,126.45,126.39,38.54833071]
[1769532641839,1.86941424,126.46,126.39,38.54833071]
[1769532642042,1.86941424,126.47,126.39,40.41774495]
[1769532643144,1.86941424,126.49,126.41,40.41774495]
[1769532643336,66.01896446,126.49,126.41,40.41774495]
[1769532644144,7.1244,126.47,126.41,40.41774495]
[1769532646745,73.14286446,126.49,126.41,47.54554495]
[1769532648543,7.1239,126.48,126.41,47.54554495]
[1769532652150,7.1239,126.48,126.41,40.41774495]
[1769532652151,7.1245,126.47,126.41,40.41774495]
[1769532652552,66.01896446,126.47,126.38,38.54833071]
[1769532652745,66.01896446,126.47,126.38,40.41774495]
[1769532653955,7.1256,126.45,126.38,47.54724495]
[1769532654556,7.1256,126.45,126.39,45.69989879]
[1769532655351,75.53884831,126.45,126.39,45.69989879]
[1769532657850,68.41324831,126.45,126.39,38.57099879]
[1769532659055,1.86941424,126.47,126.41,38.57099879]
[1769532659252,68.41324831,126.48,126.41,38.57099879]
[1769532659752,7.1245,126.47,126.42,40.44041303]
[1769532660457,68.41324831,126.5,126.44,40.44041303]
[1769532661852,110.779,126.53,126.46,1.86941424]
[1769532661853,68.41324831,126.53,126.46,1.86941424]
[1769532663056,68.41324831,126.53,126.46,40.44041303]
[1769532664060,75.53464831,126.53,126.46,40.44041303]
[1769532665060,7.1218,126.52,126.46,40.44041303]
[1769532666261,7.1222,126.51,126.46,40.44041303]
[1769532668457,7.1229,126.5,126.46,1.86941424]
[1769532670066,7.1235,126.49,126.45,1.86941424]
[1769532670464,68.41324831,126.51,126.45,1.86941424]
[1769532670659,7.1236,126.49,126.45,1.86941424]
[1769532673767,7.124,126.48,126.45,1.86941424]
[1769532677167,7.124,126.48,126.43,1.86941424]
[1769532677369,7.1245,126.47,126.42,40.44041303]
[1769532679473,7.125,126.46,126.42,1.86941424]
[1769532679776,68.41324831,126.47,126.4,40.44196034]
[1769532680274,68.41324831,126.47,126.35,426.6848]
[1769532680275,70.28420986,126.46,126.39,1.87096155]
[1769532681076,77.41030986,126.45,126.38,9.00046155]
[1769532681473,77.41030986,126.45,126.38,47.57146034]
[1769532682075,75.53934831,126.45,126.38,47.57146034]
[1769532682578,68.41324831,126.45,126.39,1.87096155]
[1769532683685,75.53934831,126.45,126.39,1.87096155]
[1769532684788,75.53934831,126.45,126.38,47.57146034]
[1769532686589,7.1261,126.45,126.39,47.51386172]
[1769532686789,7.1261,126.45,126.4,40.38506172]
[1769532687483,7.1263,126.44,126.39,1.87096155]
[1769532687784,73.26456191,126.44,126.39,1.87096155]
[1769532687988,73.26496191,126.43,126.37,38.51410017]
[1769532688388,68.00922346,126.43,126.36,1.87096155]
[1769532688578,75.13592346,126.43,126.36,47.51566172]
[1769532692091,75.13592346,126.43,126.36,45.64470017]
[1769532692689,110.8389,126.46,126.34,40.38506172]
[1769532692690,68.00922346,126.42,126.34,40.38506172]
[1769532692887,66.13826191,126.39,126.32,40.38506172]
[1769532693082,68.00922346,126.38,126.32,38.51410017]
[1769532694494,75.13892346,126.38,126.32,38.51410017]
[1769532694796,68.00922346,126.38,126.3,7.88099906]
[1769532695498,68.00922346,126.36,126.3,6.01003751]
[1769532695694,66.13826191,126.33,126.3,3.751e-05]
[1769532696900,68.00922346,126.32,126.24,40.38506172]
[1769532697997,7.1342,126.3,126.24,40.38506172]
[1769532698199,68.00922346,126.3,126.22,1.87096155]
[1769532698896,66.13826191,126.29,126.22,40.38506172]
[1769532699993,66.13826191,126.29,126.22,47.52346172]
[1769532700191,66.13826191,126.29,126.24,1.87096155]
[1769532700398,56.22666078,126.29,126.25,6.72958676]
[1769532700600,56.22666078,126.29,126.24,1.87096155]